Cogmind - Beta 17 @@@ ROGUE MODE // 2026.07.03 @ 23:04:02 Player: TheSkyeDoctor Result: Destroyed by D-53 Grenadier with Mini Grenade Launcher Performance ------------- Evolutions (0) 0 Regions Visited (2) 400 Robots Destroyed (21) 105 Value Destroyed (236) 236 Prototype IDs (0) 0 Alien Tech Used (0) 0 Bonus (0) 0 TOTAL SCORE: 741 Bonus ------- None Cogmind --------- Core Integrity 0/250 Matter 300/300 Energy 100/100 System Corruption 0% Temperature Cool (0) Movement Core (200) Ox3 Location -10/Mines Parts ------- > --- POWER (1) -------- (None) > --- PROPULSION (2) --- (None) > --- UTILITY (2) ------ Medium Storage Unit > --- WEAPON (2) ------- (None) > --- INVENTORY (10) --- Improved Ion Engine Light Treads Improved Terrain Scanner Hacking Suite EM Pulse Gun Assault Rifle Peak State ------------ > --- POWER ------------ Improved Ion Engine > --- PROPULSION ------- Light Treads Light Treads > --- UTILITY ---------- Medium Storage Unit Seismic Detector > --- WEAPON ----------- Heavy EM Pulse Gun Assault Rifle > --- INVENTORY -------- Improved Ion Engine Light Treads Wheel Small Storage Unit Improved Terrain Scanner EM Pulse Gun Grenade Launcher [Rating: 10] Favorites ----------- Power Improved Ion Engine Engine Improved Ion Engine Propulsion Light Treads Treads Light Treads Wheel Wheel Utility Seismic Detector Device Seismic Detector Storage Small Storage Unit Weapon Assault Rifle Energy Gun Heavy EM Pulse Gun Ballistic Gun Assault Rifle Launcher Grenade Launcher Build | -11 -10 -10 ------- Run | Yrd Mat Min Slots Evolved . | . . . Power . | . . . Propulsion . | . . . Utility . | . . . Weapon . | . . . Parts Attached 13 | 7 5 1 Power 2 | 1 1 . Engine 2 | 1 1 . Core . | . . . Reactor . | . . . Propulsion 3 | 2 . 1 Treads 2 | 2 . . Leg . | . . . Wheel 1 | . . 1 Hover . | . . . Flight . | . . . Utility 3 | 2 1 . Device 1 | 1 . . Storage 2 | 1 1 . Processor . | . . . Hackware . | . . . Protection . | . . . Artifact . | . . . Weapon 5 | 2 3 . Energy Gun 2 | 1 1 . Energy Cannon . | . . . Ballistic Gun 2 | 1 1 . Ballistic Cannon . | . . . Launcher 1 | . 1 . Special Weapon . | . . . Impact Weapon . | . . . Slashing Weapon . | . . . Piercing Weapon . | . . . Special Melee Weapon . | . . . Unidentified Prototypes . | . . . Parts Lost 8 | . 1 7 Power 1 | . . 1 Propulsion 3 | . . 3 Utility 1 | . . 1 Weapon 3 | . 1 2 Highest Loss Streak 7 | . 1 7 To Critical Strikes . | . . . Average Backups 4 | 1 5 7 Power . | . 1 1 Propulsion 1 | . 1 2 Utility . | . 1 2 Weapon 1 | . 1 2 Tool/Special . | . . . Unused Backups 6 | 1 1 4 Power 2 | . 1 1 Propulsion 1 | . . 1 Utility 3 | 1 . 2 Weapon . | . . . Tool/Special . | . . . Average Slot Usage (%) 98 | . 99 90 Engine 13 | . 14 12 Treads 27 | . 28 24 Device 13 | . 14 12 Storage 14 | . 14 14 Energy Gun 13 | . 14 12 Ballistic Gun 10 | . 12 1 Launcher 2 | . 1 10 Peak Build Rating 10 | 7 10 10 Average Rating 7 | 5 8 9 On Entrance 5 | . 7 10 Avg Prop Armor Cover (%) . | . . . Naked Turns . | . . . Heaviest Build 24 | 13 24 24 Greatest Support 40 | 40 40 40 Greatest Overweight (x) 3 | . . 3 Average Overweight (x) . | . . . Largest Inventory Capacity 10 | 8 10 10 Average Capacity 8 | 7 8 10 Most Carried 7 | 3 7 7 Average Carried 4 | 1 5 6 Final Capacity 10 | 8 10 10 Final Carried 7 | 3 7 6 Class Distribution -------------------- 100% | Mutant Dominant Class ---------------- Mutant | -10/Materials Mutant | -10/Mines Resources | -11 -10 -10 ----------- Run | Yrd Mat Min Matter Collected 519 | 333 176 10 Remotely . | . . . Salvage Created 597 | 208 389 . Parts 46 | 18 28 . Haulers Intercepted 1 | . 1 . Recyclers Shooed 2 | . 2 . Parts Field Recycled . | . . . Retrieved Matter . | . . . Parts Self-Destructed . | . . . Prevented . | . . . Parts Restored . | . . . Kills | -11 -10 -10 ------- Run | Yrd Mat Min Combat Hostiles Destroyed 9 | . 9 . Guns 7 | . 7 . AOE 1 | . 1 . Classes Destroyed 7 | 3 4 . Worker 2 | 1 1 . Tunneler 6 | 6 . . Hauler 1 | . 1 . Recycler 2 | 1 1 . Watcher 1 | . 1 . Swarmer 6 | . 6 . Grunt 3 | . 3 . Best Kill Streak 7 | 3 7 . Combat Bots Only 3 | . 3 . Max Kills in Single Turn 2 | 1 2 . Gunslinging . | . . . Exploded 1 | . 1 . Melee . | . . . Uniques/NPCs Destroyed . | . . . Combat | -11 -10 -10 -------- Run | Yrd Mat Min Hostile Shots Fired 97 | . 86 11 Missed 32 | . 30 2 Hits 65 | . 56 9 Projectile 65 | . 56 9 AOE 11 | . . 11 Damage Taken 959 | 26 480 453 Core 252 | 13 80 159 Absorbed by Shields . | . . . Core Remaining (%) 94 | 94 . . Volleys Fired 70 | 22 46 2 Largest 2 | 2 2 2 Hottest 75 | 60 65 75 Shots Fired 136 | 44 88 4 Gun 134 | 44 88 2 Cannon . | . . . Launcher 2 | . . 2 Special . | . . . Kinetic 64 | 22 42 . Thermal . | . . . Explosive 2 | . . 2 Electromagnetic 70 | 22 46 2 Robot Hit Streak 5 | 4 5 1 Robot Miss Streak 5 | 3 5 4 Penetration Max . | . . . Secondary Targets 2 | . 2 . Max Gunslinging Chain 1 | . 1 . Shots Hit Robots 63 | 21 41 1 Core Hits 27 | 9 15 3 Critical Kills . | . . . Critical Parts Destroyed . | . . . Critical Strikes 2 | . 2 . Corrupt 2 | . 2 . Melee Attacks . | . . . Impact . | . . . Slashing . | . . . Piercing . | . . . Sneak Attacks . | . . . Combat Hostiles . | . . . Follow-up Attacks . | . . . Damage Inflicted 1110 | 374 703 33 Guns 905 | 296 609 . Cannons . | . . . Explosions 200 | 78 89 33 Melee . | . . . Ramming 5 | . 5 . Kinetic 373 | 118 255 . Thermal 167 | 78 89 . Explosive 33 | . . 33 Electromagnetic 532 | 178 354 . Impact . | . . . Slashing . | . . . Piercing . | . . . Highest Corruption . | . . . Average Corruption . | . . . Corruption Purged . | . . . Corruption Blocked . | . . . Overload Shots . | . . . Overflow Damage 3 | 3 . . Projectiles . | . . . Explosions 3 | 3 . . Melee . | . . . Knockbacks . | . . . Impact . | . . . Kinetic . | . . . Secondary . | . . . Self-Inflicted Damage 44 | 27 17 . Shots 2 | 1 1 . Rammed 1 | . 1 . Targets Rammed 1 | . 1 . Kicked . | . . . Crushed . | . . . Highest Temperature 102 | 12 102 36 Average Temperature 26 | 12 28 20 Received Heat Transfer 30 | . 30 . Siege Activations . | . . . Martial Activations . | . . . Shielding Activations . | . . . Robots Disrupted . | . . . Combat Hostiles . | . . . Robots Corrupted 1 | . 1 . Combat Hostiles 1 | . 1 . Parts Fried 2 | 2 . . Impact Corruptions . | . . . Robots Melted . | . . . Combat Hostiles . | . . . Parts Melted . | . . . Heat Transferred 300 | 150 150 . Parts Sabotaged . | . . . Parts Stolen . | . . . Parts Stripped . | . . . Power Chain Reactions 3 | 1 2 . Alert | -11 -10 -10 ------- Run | Yrd Mat Min Maximum Alert Level . | . . . Low Security (%) 100 | 100 100 100 Level 1 . | . . . Level 2 . | . . . Level 3 . | . . . Level 4 . | . . . Level 5 . | . . . High Security . | . . . Max Security . | . . . Peak Influence 170 | 10 170 18 Initial 18 | . . 18 Average 49 | . 83 6 Influence Increases 348 | 40 301 7 Destroy 0b10 Robot/C 180 | . 180 . Destroy 0b10 Robot/NC 60 | 40 20 . Destroy Leader 34 | . 34 . Successful Hack 11 | . 11 . Destroy Structure 18 | . 11 7 Lose Combat Pursuer 45 | . 45 . Influence Decreases 348 | 40 253 55 Entered New Map 30 | . . 30 Time Decay 291 | 40 233 18 Lost Part 17 | . 10 7 Lost Ally 10 | . 10 . Squads Dispatched 2 | . 2 . Investigation 1 | . 1 . Extermination . | . . . Reinforcement 1 | . 1 . Assault . | . . . Garrison . | . . . Intercept . | . . . Searches Triggered . | . . . Construction Impeded . | . . . Haulers Reinforced . | . . . Active Scanning Responses . | . . . Cargo Convoy Interrupts . | . . . Stealth | -11 -10 -10 --------- Run | Yrd Mat Min Distress Signals 3 | . 3 . Communications Jammed . | . . . Distress Signals . | . . . Times Spotted 22 | . 20 2 Peak Tracking Total 5 | . 5 2 Tactical Retreats 3 | . 3 . Traps | -11 -10 -10 ------- Run | Yrd Mat Min Traps Triggered 1 | . 1 . Indirectly . | . . . Trap Hack Attempts . | . . . Triggered . | . . . Disarmed . | . . . Reprogrammed . | . . . Reused . | . . . Traps Extracted . | . . . Installed . | . . . Triggered . | . . . Machines | -11 -10 -10 ---------- Run | Yrd Mat Min Machines Disabled . | . . . Max in Single Turn . | . . . Machines Repaired . | . . . Machines Dismantled . | . . . Machines Sabotaged . | . . . Overloaded Fab Kills . | . . . Hacking | -11 -10 -10 --------- Run | Yrd Mat Min Machines Accessed 2 | . 2 . Terminals 2 | . 2 . Fabricators . | . . . Repair Stations . | . . . Recycling Units . | . . . Scanalyzers . | . . . Garrison Access . | . . . Total Hacks 5 | . 5 . Successful 3 | . 3 . Failed 2 | . 2 . Catastrophic . | . . . Database Lockouts . | . . . Manual 5 | . 5 . Terminals 5 | . 5 . Fabricators . | . . . Repair Stations . | . . . Recycling Units . | . . . Scanalyzers . | . . . Garrison Access . | . . . Terminal Hacks . | . . . Fabricator Hacks . | . . . Repair Station Hacks . | . . . Recycling Unit Hacks . | . . . Scanalyzer . | . . . Garrison Access Hacks . | . . . Unauthorized Hacks 3 | . 3 . Terminals 3 | . 3 . Assimilate 2 | . 2 . Botnet 1 | . 1 . Fabricators . | . . . Repair Stations . | . . . Recycling Units . | . . . Scanalyzers . | . . . Garrison Access . | . . . Data Cores Recovered . | . . . Used . | . . . Hacking Detections 1 | . 1 . Full Trace Events . | . . . Feedback Events . | . . . Feedback Blocked . | . . . Robot Schematics Acquired . | . . . Robots Built . | . . . Authchips . | . . . Time . | . . . Total Robot Build Rating . | . . . Part Schematics Acquired . | . . . Parts Built . | . . . Authchips . | . . . Time . | . . . Total Part Build Rating . | . . . Part Studies Acquired . | . . . Parts Repaired . | . . . Time . | . . . Parts Recycled . | . . . Recycled Matter . | . . . Retrieved Matter . | . . . Retrieved Components . | . . . Parts Scanalyzed . | . . . Part Schematics Acquired . | . . . Parts Damaged . | . . . Bothacking | -11 -10 -10 ------------ Run | Yrd Mat Min Used RIF Installer . | . . . Robots Hacked . | . . . Non-combat . | . . . Combat . | . . . Robot Hacks Applied . | . . . Relay Couplers Released . | . . . Fabnet Peak Effective % . | . . . Robots Rewired . | . . . Allies Hacked . | . . . Hacks Repelled . | . . . Allies | -11 -10 -10 -------- Run | Yrd Mat Min Total Allies 1 | . 1 . Largest Group 1 | . 1 . Highest-Rated Group 10 | . 10 . Highest-Rated Ally 10 | . 10 . Total Orders . | . . . Ally Attacks . | . . . Total Damage . | . . . Kills . | . . . Allies Corrupted . | . . . Allies Melted . | . . . Intel | -11 -10 -10 ------- Run | Yrd Mat Min Active Infowar (turns) 740 | 92 570 78 Seismic 740 | 92 570 78 Robot Analysis Total . | . . . Derelict Logs Recovered . | . . . Drone Launches . | . . . Drone Recoveries . | . . . Exploration | -11 -10 -10 ------------- Run | Yrd Mat Min Turns Passed 970 | 319 570 81 Spaces Moved 459 | 151 262 46 Core 3 | 2 . 1 Treads 455 | 149 262 44 Legs . | . . . Wheels 1 | . . 1 Hover . | . . . Flight . | . . . Fastest Speed 50 | 50 160 95 Average Speed 159 | 158 160 159 Slowest Speed 200 | 160 160 200 Overloaded Moves . | . . . Propulsion Burnouts . | . . . Robots Hopped . | . . . Potential Cave-ins . | . . . Cave-ins Triggered . | . . . Exploration Rate (%) 20 | 8 38 14 Regions Visited 2 Branch Regions 1 Pre-discovered Areas . | . . . Known Exits Taken . | . . . Unknown Exits Taken 2 | 1 1 . Scrap Searched 1 | . . 1 Spaces Dug . | . . . Terrain Destroyed 31 | 8 11 12 Melee . | . . . Projectile . | . . . AOE 31 | 8 11 12 Terrain Rammed . | . . . Walls Destroyed . | . . . Machines Disabled . | . . . Actions | -11 -10 -10 --------- Run | Yrd Mat Min Total 558 | 184 324 50 Wait 3 | . 3 . Move 457 | 150 261 46 Hop . | . . . Pick Up 8 | 4 4 . Fast Attach 8 | 7 1 . Attach 2 | . 1 1 Detach 1 | . 1 . Swap 4 | . 3 1 Drop 4 | 1 3 . Fire 70 | 22 46 2 Melee . | . . . Ram . | . . . Kick . | . . . Crush 1 | . 1 . Escape Stasis . | . . . Rewire . | . . . Trap . | . . . Miscellaneous . | . . . Route ------- -11/Scrapyard -10/Materials (discovered 2 exits: [*Mat] / [*Min]) -10/Mines History --------- Turn | Location | Event 37 | -11/Scrapyard | Discovered new exit (range 15) 320 | -11/Scrapyard | Entered Materials 321 | -10/Materials | Build established: Mutant 569 | -10/Materials | Discovered new exit (range 14) 820 | -10/Materials | Derelicts attacked the area 826 | -10/Materials | Discovered new exit (range 13) 890 | -10/Materials | Entered Mines 901 | -10/Mines | Assembled infested the area 963 | -10/Mines | Core integrity fell below 50% 971 | -10/Mines | Destroyed by D-53 Grenadier with Mini Grenade Launcher Last Messages --------------- 00878_ Acquired 10 matter. LOCATION=UNKNOWN GOAL=ESCAPE Something is scanning the area. 00901_ ALERT: Infestation in the mines, dispatching Demolisher response squad. 00935_ Searching scrap... 00935_ Found 44 Matter. 00935_ Found 66 Matter. 00936_ Acquired 10 matter. 00962_ C-45 Heavy ARC bursts open, deploying its payload. 00962_ D-53 Grenadier unfolds itself. 00963_ Lgt. Treads destroyed. 00967_ Grenade Launcher destroyed. 00967_ Hvy. EM Pulse Gun destroyed. 00968_ Seismic Detector destroyed. 00968_ Lgt. Treads destroyed. 00969_ Wheel destroyed. 00969_ Imp. Ion Engine destroyed. Map ----- +----------------------------------------------------+ | ??????????????????????????????????????????? | | ??????????????????????????????????????????? | | ??????????????????????????????????????????? | | ??????????????????????????????????????????? | | ??????????????????????????????????????????? | | ??????????????????????????????????????????? | | ??????????????????????????????????????????? | | ?????????????????????????????? ??????????? | | ?????????????????????????????? #??????????? | | ?????????????????????????????? #??????????? | | ???????????????????????????### #??????????? | | ???????????????????????????# ???????????? | | ???????????????????????????# ???????????? | | ???????????????????????????# #???????????? | | ????# #####???????????????# #???????????? | | ????# #???????????????# ###?????????? | | ????# ### #?????????????### ##????????? | | ?????????#%#????????????## #????????? | | ?????????#%############## #?????????? | | ?????????# # ## #?????????? | | ?????????#### #?????????? | | ???????????# d ##????????? | | ???????????# d ### ##??????#? | | ???????????# #??## #???? #? | | ???????????# #???# ### ## | | ???????????# @ #???# # | | ???????????## ###???## | | ????????????## #?????## | | ?????????????#### # #?????# | | ????????????????##### #?????## """ | | ????????????????????# #??????? """ | | ????????????????????## #??????? """ # | | ??????????????????????## #??????? ?? | | ???????????????????????? #??????? ?? | | ???????????????????????? #??????? ?? | | ???????????????????????? ???????? #? | | ???????????????????????? ??????? ? | | ????????????????????????? ? ???????###### ? | | ?????????????????????????????????????????#? | | ??????????????????????????????????????????? | | ??????????????????????????????????????????? | | ??????????????????????????????????????????? | | ??????????????????????????????????????????? | | ??????????????????????????????????????????? | | ??????????????????????????????????????????? | | ??????????????????????????????????????????? | | ??????????????????????????????????????????? | | ??????????????????????????????????????????? | | ??????????????????????????????????????????? | | ??????????????????????????????????????????? | +----------------------------------------------------+ Best States ------------- Heat Dissipation 25 Energy Generation 12 Energy Capacity 265 Matter Stores 300 Matter Capacity 300 Sight Range 16 Terrain Scan Density 10 Evasion (%) 40 Recoil Reduction 2 Item Schematics ----------------- None Robot Schematics ------------------ None Fabricated ------------ Nothing Repaired ---------- Nothing Studied --------- None Alien Tech Used ----------------- None Achievements -------------- None Challenges ------------ None Game ------ Seed CombatServoModule Manual? 0 Play Time 00:06:11 Cumulative 114.1 hours Start 2026.07.03 @ 22:58:28 End 2026.07.03 @ 23:04:02 Sessions 1 Manual Loads 0 Difficulty Rogue Special Mode None Game No. 244 Rogue 244 Adventurer 0 Explorer 0 Win Type - Total 0 Types 0/0/0/0/0/0/0/0/0/0 Lore% 50 Gallery% 51 Achievement% 41 Wizard Run 0 Options --------- Layout 2 ASCII 0 Keyboard 1 Movement Arrows Keybinds 0 Fullscreen 1 Font 24/Smallcaps Map View 50x44 Zoom Use 0% Tactical HUD 1 Map Filters NONE Filters NONE Steam 1 RUN: 46b18325-0b4f-404b-ab01-3ceb694cc4c8